fUSD/lending_fUSD_20241107
["ID","MTS","AMOUNT","RATE_DAILY","PERIOD"]
[341584390,1731009050187,-1017.12,0.0002794,2]
[341584391,1731009050198,-500.0,0.0002794,2]
[341584392,1731009050207,-634.76,0.0002794,2]
[341584393,1731009050216,-500.0,0.0002794,2]
[341584394,1731009050226,-500.0,0.0002794,2]
[341584395,1731009050240,-500.0,0.0002794,2]
[341584396,1731009050251,-500.0,0.0002794,2]
[341584397,1731009050261,-500.71,0.0002794,2]
[341584398,1731009050270,-1081.06,0.0002794,2]
[341584399,1731009050279,-500.0,0.0002794,2]
[341584400,1731009050288,-500.0,0.0002794,2]
[341584401,1731009050298,-500.0,0.0002794,2]
[341584402,1731009050307,-500.0,0.0002794,2]
[341584403,1731009050318,-500.0,0.0002794,2]
[341584404,1731009050327,-506.23,0.0002794,2]
[341584405,1731009050337,-500.0,0.0002794,2]
[341584406,1731009050345,-565.59,0.0002794,2]
[341584407,1731009050356,-559.3,0.0002794,2]
[341584408,1731009050365,-500.0,0.0002794,2]
[341584409,1731009050374,-500.0,0.0002794,2]
[341584410,1731009050384,-500.0,0.0002794,2]
[341584411,1731009050393,-4839.06,0.0002794,2]
[341584412,1731009050402,-544.31,0.0002794,2]
[341584413,1731009050412,-500.0,0.0002794,2]
[341584414,1731009050421,-500.0,0.0002794,2]
[341584415,1731009050431,-971.26,0.0002794,2]
[341584416,1731009050439,-578.62,0.0002794,2]
[341584417,1731009050449,-1354.23,0.0002794,2]
[341584418,1731009050458,-500.0,0.0002794,2]
[341584419,1731009050467,-500.0,0.0002794,2]
[341584420,1731009050476,-500.0,0.0002794,2]
[341584421,1731009050485,-500.0,0.0002794,2]
[341584422,1731009050494,-500.0,0.0002794,2]
[341584423,1731009050503,-548.84,0.0002794,2]
[341584424,1731009050512,-500.0,0.0002794,2]
[341584425,1731009050521,-512.42,0.0002794,2]
[341584426,1731009050530,-738.69,0.0002794,2]
[341584427,1731009050540,-500.0,0.0002794,2]
[341584428,1731009050549,-1284.19,0.0002794,2]
[341584429,1731009050558,-500.0,0.0002794,2]
[341584430,1731009050568,-500.0,0.0002794,2]
[341584431,1731009050577,-500.0,0.0002794,2]
[341584432,1731009050586,-500.0,0.0002794,2]
[341584433,1731009050595,-500.0,0.0002794,2]
[341584434,1731009050606,-500.0,0.0002794,2]
[341584435,1731009050617,-1190.53,0.0002794,2]
[341584436,1731009050626,-500.0,0.0002794,2]
[341584437,1731009050635,-500.0,0.0002794,2]
[341584438,1731009050644,-500.0,0.0002794,2]
[341584439,1731009050653,-500.0,0.0002794,2]
[341584440,1731009050661,-1391.35,0.0002794,2]
[341584441,1731009050670,-500.0,0.0002794,2]
[341584442,1731009050679,-1182.92,0.0002794,2]
[341584443,1731009050688,-500.0,0.0002794,2]
[341584444,1731009050698,-554.19,0.0002794,2]
[341584445,1731009050707,-500.0,0.0002794,2]
[341584446,1731009050716,-719.06,0.0002794,2]
[341584447,1731009050726,-873.23,0.0002794,2]
[341584448,1731009050735,-500.0,0.0002794,2]
[341584449,1731009050744,-541.74,0.0002794,2]
[341584450,1731009050753,-500.0,0.0002794,2]
[341584451,1731009050761,-500.0,0.0002794,2]
[341584452,1731009050770,-500.0,0.0002794,2]
[341584453,1731009050779,-500.0,0.0002794,2]
[341584454,1731009050788,-500.0,0.0002794,2]
[341584455,1731009050798,-500.0,0.0002794,2]
[341584456,1731009050806,-941.64,0.0002794,2]
[341584457,1731009050815,-500.0,0.0002794,2]
[341584458,1731009050824,-500.0,0.0002794,2]
[341584459,1731009050833,-349.45,0.0002794,2]
[341584460,1731009050842,-1132.14,0.0002794,2]
[341584461,1731009050851,-596.15,0.0002794,2]
[341584462,1731009050862,-686.64,0.0002794,2]
[341584463,1731009050872,-772.31,0.0002794,2]
[341584464,1731009050881,-692.22,0.0002794,2]
[341584465,1731009050890,-1050.92,0.0002794,2]
[341584466,1731009050900,-500.0,0.0002794,2]
[341584467,1731009050909,-500.0,0.0002794,2]
[341584468,1731009050918,-1241.05,0.0002794,2]
[341584469,1731009050927,-500.0,0.0002794,2]
[341584470,1731009050936,-287.56,0.0002794,2]
[341584471,1731009050946,-2320.39,0.0002794,2]
[341584472,1731009050955,-500.0,0.0002794,2]
[341584473,1731009050964,-500.0,0.0002794,2]
[341584474,1731009050973,-500.0,0.0002794,2]
[341584475,1731009050982,-1405.81,0.0002794,2]
[341584476,1731009050991,-500.0,0.0002794,2]
[341584477,1731009051000,-726.24,0.0002794,2]
[341584478,1731009051009,-500.0,0.0002794,2]
[341584479,1731009051018,-1670.09,0.0002794,2]
[341584480,1731009051027,-922.87,0.0002794,2]
[341584481,1731009051037,-726.18,0.0002794,2]
[341584482,1731009051046,-856.7,0.0002794,2]
[341584483,1731009051056,-500.0,0.0002794,2]
[341584484,1731009051065,-500.0,0.0002794,2]
[341584485,1731009051074,-500.0,0.0002794,2]
[341584486,1731009051083,-500.0,0.0002794,2]
[341584487,1731009051093,-1500.67,0.0002794,2]
[341584488,1731009051103,-500.0,0.0002794,2]
[341584489,1731009051115,-500.0,0.0002794,2]
[341584490,1731009051124,-541.26,0.0002794,2]
[341584491,1731009051133,-2000.0,0.0002794,2]
[341584492,1731009051143,-770.73,0.0002794,2]
[341584493,1731009051152,-500.0,0.0002794,2]
[341584494,1731009051161,-1837.56,0.0002794,2]
[341584495,1731009051170,-500.0,0.0002794,2]
[341584496,1731009051179,-677.65,0.0002794,2]
[341584497,1731009051188,-500.0,0.0002794,2]
[341584498,1731009051197,-500.0,0.0002794,2]
[341584499,1731009051206,-500.0,0.0002794,2]
[341584500,1731009051216,-676.49,0.0002794,2]
[341584501,1731009051225,-500.0,0.0002794,2]
[341584502,1731009051235,-500.0,0.0002794,2]
[341584503,1731009051246,-500.0,0.0002794,2]
[341584504,1731009051256,-500.0,0.0002794,2]
[341584505,1731009051265,-500.0,0.0002794,2]
[341584506,1731009051275,-500.0,0.0002794,2]
[341584507,1731009051284,-500.0,0.0002794,2]
[341584508,1731009051294,-1750.58,0.0002794,2]
[341584509,1731009051303,-500.0,0.0002794,2]
[341584510,1731009051312,-500.0,0.0002794,2]
[341584511,1731009051323,-753.15,0.0002794,2]
[341584512,1731009051332,-500.0,0.0002794,2]
[341584513,1731009051341,-1099.77,0.0002794,2]
[341584514,1731009051351,-500.0,0.0002794,2]
[341584515,1731009051361,-500.0,0.0002794,2]
[341584516,1731009051370,-969.26,0.0002794,2]
[341584517,1731009051380,-500.0,0.0002794,2]
[341584518,1731009051388,-657.63,0.0002794,2]
[341584519,1731009051397,-535.31,0.0002794,2]
[341584520,1731009051406,-169.0188,0.0002794,2]
[341584521,1731009051415,-500.0,0.0002794,2]
[341584522,1731009051424,-849.94,0.0002794,2]
[341584523,1731009051433,-500.0,0.0002794,2]
[341584524,1731009051442,-1374.68,0.0002794,2]
[341584525,1731009051451,-1083.71,0.0002794,2]
[341584526,1731009051459,-500.0,0.0002794,2]
[341584527,1731009051468,-500.0,0.0002794,2]
[341584528,1731009051477,-209.8,0.00027943,2]
[341584529,1731009051486,-817.43,0.00027945,2]
[341584530,1731009051495,-933.59,0.00027945,2]
[341584531,1731009051504,-669.38,0.00027945,2]
[341584532,1731009051513,-885.12,0.00027945,2]
[341584533,1731009051522,-500.0,0.00027945,2]
[341584534,1731009051531,-1964.76,0.00027945,2]
[341584535,1731009051540,-3199.28,0.00027945,2]
[341584536,1731009051549,-1389.25,0.00027945,2]
[341584537,1731009051558,-1453.03,0.00027945,2]
[341584538,1731009051568,-206.5077778,0.00027945,2]
[341584539,1731009051577,-641.98,0.00027945,2]
[341584540,1731009051586,-1291.93,0.00027945,2]
[341584541,1731009051596,-511.41,0.00027945,2]
[341584542,1731009051607,-500.0,0.00027945,2]
[341584543,1731009051616,-542.26,0.00027945,2]
[341584544,1731009051625,-500.0,0.00027945,2]
[341584545,1731009051633,-843.73,0.00027945,2]
[341584546,1731009051642,-602.5,0.00027945,2]
[341584547,1731009051651,-1185.65,0.00027945,2]
[341584548,1731009051660,-1132.71,0.00027945,2]
[341584549,1731009051670,-955.21,0.00027945,2]
[341584550,1731009051679,-3007.37,0.00027945,2]
[341584551,1731009051689,-300.0,0.00027945,2]
[341584552,1731009051700,-196.8968236,0.00027953,2]
[341584553,1731009051709,-621.22676036,0.00027973,5]
[341584554,1731009051718,-6007.66581125,0.00027987,2]
[341584555,1731009051727,-213.65092094,0.00027988,2]
[341584556,1731009051736,-15940.0,0.00028,15]
[341584557,1731009051745,-2284.62,0.00028013,2]
[341584558,1731009051754,-1133.4,0.00028013,2]
[341584559,1731009051763,-500.0,0.00028013,2]
[341584560,1731009051772,-541.49,0.00028013,2]
[341584561,1731009051781,-860.42,0.00028013,2]
[341584562,1731009051791,-2149.13,0.00028013,2]
[341584563,1731009051800,-1471.11,0.00028013,2]
[341584564,1731009051809,-2151.01,0.00028013,2]
[341584565,1731009051818,-1535.07,0.00028013,2]
[341584566,1731009051827,-500.0,0.00028013,2]
[341584567,1731009051836,-500.0,0.00028013,2]
[341584568,1731009051845,-905.47,0.00028013,2]
[341584569,1731009051856,-173.6,0.00028013,2]
[341584570,1731009051865,-1354.42,0.00028013,2]
[341584571,1731009051874,-500.0,0.00028013,2]
[341584572,1731009051883,-2895.19,0.00028013,2]
[341584573,1731009051891,-1026.51,0.00028013,2]
[341584574,1731009051900,-500.0,0.00028013,2]
[341584575,1731009051909,-1371.67,0.00028013,2]
[341584576,1731009051918,-1973.43,0.00028013,2]
[341584577,1731009051927,-1097.86,0.00028013,2]
[341584578,1731009051936,-7865.91,0.00028013,2]
[341584579,1731009051945,-500.0,0.00028013,2]
[341584580,1731009051954,-500.0,0.00028013,2]
[341584581,1731009051963,-829.81,0.00028013,2]
[341584582,1731009051972,-269.86,0.00028014,2]
[341584583,1731009051981,-508.36,0.00028014,2]
[341584584,1731009051990,-500.0,0.00028014,2]
[341584585,1731009051999,-138.724944,0.00028014,2]
[341584586,1731009054174,-500.0,0.00027397,2]
[341584587,1731009054184,-205.37579459,0.00027539,2]
[341584588,1731009054240,-294.62420541,0.00027539,2]
[341584589,1731009054253,-500.0,0.0002754,2]
[341584590,1731009054263,-500.0,0.0002754,2]
[341584591,1731009054275,-500.0,0.0002754,2]
[341584592,1731009054285,-500.0,0.00027671,2]
[341584593,1731009054294,-598.3,0.00027814,2]
[341584594,1731009054304,-500.0,0.00027814,2]
[341584595,1731009054314,-500.0,0.00027945,2]
[341584596,1731009054325,-500.0,0.00028014,2]
[341584597,1731009054336,-500.0,0.00028014,2]
[341584598,1731009054345,-500.0,0.00028014,2]
[341584599,1731009054670,-500.0,0.00028014,2]
[341584600,1731009054680,-527.39,0.00028014,2]
[341584601,1731009054690,-500.0,0.00028014,2]
[341584602,1731009054700,-500.0,0.00028014,2]
[341584603,1731009054710,-1124.28,0.00028014,2]
[341584604,1731009054719,-500.0,0.00028014,2]
[341584605,1731009054728,-500.0,0.00028014,2]
[341584606,1731009054738,-500.0,0.00028014,2]
[341584607,1731009054747,-500.0,0.00028014,2]
[341584608,1731009054757,-886.61,0.00028014,2]
[341584609,1731009054766,-580.7,0.00028014,2]
[341584610,1731009054775,-500.0,0.00028014,2]
[341584611,1731009054785,-500.0,0.00028014,2]
[341584612,1731009054794,-937.95,0.00028014,2]
[341584613,1731009054803,-817.31,0.00028014,2]
[341584614,1731009054812,-500.0,0.00028014,2]
[341584615,1731009054821,-531.21,0.00028014,2]
[341584616,1731009054830,-500.0,0.00028014,2]
[341584617,1731009054840,-227.72900301,0.00028014,2]
[341584618,1731009054849,-500.0,0.00028014,2]
[341584619,1731009054861,-500.0,0.00028014,2]
[341584620,1731009054870,-500.0,0.00028014,2]
[341584621,1731009054879,-1080.7,0.00028014,2]
[341584622,1731009054888,-500.0,0.00028014,2]
[341584623,1731009054898,-500.0,0.00028014,2]
[341584624,1731009054907,-500.0,0.00028014,2]
[341584625,1731009054917,-500.0,0.00028014,2]
[341584626,1731009054926,-500.0,0.00028014,2]
[341584627,1731009054935,-878.64,0.00028014,2]
[341584628,1731009054944,-500.0,0.00028014,2]
[341584629,1731009054953,-1049.96,0.00028014,2]
[341584630,1731009054963,-500.0,0.00028014,2]
[341584631,1731009054972,-517.9940123,0.00028014,2]
[341584632,1731009054982,-599.17,0.00028014,2]
[341584633,1731009054991,-500.0,0.00028014,2]
[341584634,1731009055000,-1518.12,0.00028014,2]
[341584635,1731009055010,-500.0,0.00028014,2]
[341584636,1731009055019,-500.0,0.00028014,2]
[341584637,1731009055028,-463.6895731,0.00028014,2]
[341584638,1731009055038,-500.0,0.00028014,2]
[341584639,1731009055048,-500.0,0.00028014,2]
[341584640,1731009055058,-500.0,0.00028014,2]
[341584641,1731009055068,-500.0,0.00028014,2]
[341584642,1731009055077,-500.0,0.00028014,2]
[341584643,1731009055087,-517.89,0.00028014,2]
[341584644,1731009055096,-537.08,0.00028014,2]
[341584645,1731009055107,-500.0,0.00028014,2]
[341584646,1731009055117,-500.0,0.00028014,2]
[341584647,1731009055126,-248.29023593,0.00028014,2]
[341584648,1731009055136,-511.66,0.00028014,2]
[341584649,1731009055145,-500.0,0.00028014,2]
[341584650,1731009055155,-500.0,0.00028014,2]
[341584651,1731009055165,-1584.47,0.00028014,2]
[341584652,1731009055174,-500.0,0.00028014,2]
[341584653,1731009055183,-823.16,0.00028014,2]
[341584654,1731009055193,-500.0,0.00028014,2]
[341584655,1731009055202,-500.0,0.00028014,2]
[341584656,1731009055212,-642.71,0.00028014,2]
[341584657,1731009055221,-500.0,0.00028014,2]
[341584658,1731009055231,-516.81,0.00028014,2]
[341584659,1731009055243,-517.31,0.00028014,2]
[341584660,1731009055252,-1159.09,0.00028014,2]
[341584661,1731009055261,-500.0,0.00028014,2]
[341584662,1731009055271,-1000.0,0.00028014,2]
[341584663,1731009055282,-598.38149564,0.00028014,2]
[341584664,1731009055291,-500.0,0.00028014,2]
[341584665,1731009055300,-642.33,0.00028014,2]
[341584666,1731009055313,-500.0,0.00028014,2]
[341584667,1731009055322,-500.0,0.00028014,2]
[341584668,1731009055331,-665.12,0.00028014,2]
[341584669,1731009055341,-500.0,0.00028014,2]
[341584670,1731009055351,-500.0,0.00028014,2]
[341584671,1731009055362,-500.0,0.00028014,2]
[341584672,1731009055372,-500.0,0.00028014,2]
[341584673,1731009055382,-500.0,0.00028014,2]
[341584674,1731009055391,-500.0,0.00028014,2]
[341584675,1731009055400,-696.33,0.00028014,2]
[341584676,1731009055410,-1126.38,0.00028014,2]
[341584677,1731009055419,-500.0,0.00028014,2]
[341584678,1731009055429,-796.09,0.00028014,2]
[341584679,1731009055438,-500.0,0.00028014,2]
[341584680,1731009055447,-1320.36,0.00028014,2]
[341584681,1731009055456,-684.67,0.00028014,2]
[341584682,1731009055465,-568.45,0.00028014,2]
[341584683,1731009055475,-558.58,0.00028014,2]
[341584684,1731009055484,-757.09,0.00028014,2]
[341584685,1731009055493,-500.0,0.00028014,2]
[341584686,1731009055502,-500.0,0.00028014,2]
[341584687,1731009055512,-500.0,0.00028014,2]
[341584688,1731009055521,-500.0,0.00028014,2]
[341584689,1731009055530,-500.0,0.00028014,2]
[341584690,1731009055539,-660.29,0.00028014,2]
[341584691,1731009055549,-1142.83,0.00028014,2]
[341584692,1731009055558,-862.96,0.00028014,2]
[341584693,1731009055568,-500.0,0.00028014,2]
[341584694,1731009055580,-500.0,0.00028014,2]
[341584695,1731009055589,-1108.47,0.00028014,2]
[341584696,1731009055599,-674.3,0.00028014,2]
[341584697,1731009055609,-500.0,0.00028014,2]
[341584698,1731009055618,-500.0,0.00028014,2]
[341584699,1731009055627,-299.45605072,0.00028014,2]
[341584700,1731009055637,-500.0,0.00028014,2]
[341584701,1731009055646,-500.0,0.00028014,2]
[341584702,1731009055655,-500.0,0.00028014,2]
[341584703,1731009055665,-500.0,0.00028014,2]
[341584704,1731009055675,-500.0,0.00028014,2]
[341584705,1731009055684,-500.0,0.00028014,2]
[341584706,1731009055694,-721.86,0.00028014,2]
[341584707,1731009055703,-500.0,0.00028014,2]
[341584708,1731009055713,-985.75,0.00028014,2]
[341584709,1731009055722,-500.0,0.00028014,2]
[341584710,1731009055731,-500.0,0.00028014,2]
[341584711,1731009055742,-666.69,0.00028014,2]
[341584712,1731009055751,-638.61,0.00028014,2]
[341584713,1731009055760,-500.0,0.00028014,2]
[341584714,1731009055771,-500.0,0.00028014,2]
[341584715,1731009055780,-153.0341709,0.00028014,2]
[341584716,1731009055789,-553.76,0.00028014,2]
[341584717,1731009055798,-500.0,0.00028014,2]
[341584718,1731009055808,-1250.28,0.00028014,2]
[341584719,1731009055817,-516.17,0.00028014,2]
[341584720,1731009055826,-500.0,0.00028014,2]
[341584721,1731009055836,-743.78,0.00028014,2]
[341584722,1731009055845,-500.0,0.00028014,2]
[341584723,1731009055854,-500.0,0.00028014,2]
[341584724,1731009055864,-500.0,0.00028014,2]
[341584725,1731009055873,-500.0,0.00028014,2]
[341584726,1731009055883,-1107.08,0.00028014,2]
[341584727,1731009055892,-151.0,0.00028014,7]
[341584728,1731009055902,-500.0,0.00028014,2]
[341584729,1731009055912,-376.29822726,0.00028014,2]
[341584730,1731009055922,-500.0,0.00028014,2]
[341584731,1731009055932,-956.64,0.00028014,2]
[341584732,1731009055942,-500.0,0.00028014,2]
[341584733,1731009055951,-500.0,0.00028014,2]
[341584734,1731009055960,-500.0,0.00028014,2]
[341584735,1731009055969,-500.0,0.00028014,2]
[341584736,1731009055979,-1900.6,0.00028014,2]
[341584737,1731009055989,-500.0,0.00028014,2]
[341584738,1731009055998,-192.28,0.00028014,2]
[341584739,1731009056008,-151.0,0.00028014,7]
[341584740,1731009056017,-500.0,0.00028014,2]
[341584741,1731009056027,-621.55,0.00028014,2]
[341584742,1731009056036,-151.0,0.00028014,7]
[341584743,1731009056045,-500.0,0.00028014,2]
[341584744,1731009056054,-500.0,0.00028014,2]
[341584745,1731009056064,-500.0,0.00028014,2]
[341584746,1731009056074,-500.0,0.00028014,2]
[341584747,1731009056084,-500.0,0.00028014,2]
[341584748,1731009056094,-500.0,0.00028014,2]
[341584749,1731009056103,-500.0,0.00028014,2]
[341584750,1731009056114,-588.82,0.00028014,2]
[341584751,1731009056124,-1174.57,0.00028014,2]
[341584752,1731009056133,-500.0,0.00028014,2]
[341584753,1731009056142,-151.0,0.00028014,7]
[341584754,1731009056152,-160.052299,0.00028014,7]
[341584755,1731009056161,-730.09,0.00028014,2]
[341584756,1731009056170,-160.052299,0.00028014,7]
[341584757,1731009056180,-500.0,0.00028014,2]
[341584758,1731009056190,-948.29,0.00028014,2]
[341584759,1731009056199,-1254.51,0.00028014,2]
[341584760,1731009056209,-500.0,0.00028014,2]
[341584761,1731009056218,-954.33,0.00028014,2]
[341584762,1731009056227,-697.74725481,0.00028014,2]
[341584763,1731009056265,-187.86274519,0.00028014,2]
[341584764,1731009056275,-500.0,0.00028014,2]
[341584765,1731009056286,-500.0,0.00028014,2]
[341584766,1731009056296,-500.0,0.00028014,2]
[341584767,1731009056305,-823.22,0.00028014,2]
[341584768,1731009056316,-500.0,0.00028014,2]
[341584769,1731009056327,-151.0,0.00028014,7]
[341584770,1731009056337,-600.99,0.00028014,2]
[341584771,1731009056346,-172.72036885,0.00028014,2]
[341584772,1731009057012,-381.465,0.00028014,2]
[341584773,1731009057344,-249.22463115,0.00028014,2]
[341584774,1731009057354,-500.0,0.00028014,2]
[341584775,1731009057364,-500.0,0.00028014,2]
[341584776,1731009057373,-500.0,0.00028014,2]
[341584777,1731009057382,-702.35,0.00028014,2]
[341584778,1731009057391,-500.0,0.00028014,2]
[341584779,1731009057399,-500.0,0.00028014,2]
[341584780,1731009057409,-500.0,0.00028014,2]
[341584781,1731009057419,-500.0,0.00028014,2]
[341584782,1731009057428,-500.0,0.00028014,2]
[341584783,1731009057437,-500.0,0.00028014,2]
[341584784,1731009057446,-611.54,0.00028014,2]
[341584785,1731009057455,-540.29,0.00028014,2]
[341584786,1731009057464,-1132.74,0.00028014,2]
[341584787,1731009057472,-500.0,0.00028014,2]
[341584788,1731009057481,-538.58,0.00028014,2]
[341584789,1731009057490,-743.97,0.00028014,2]
[341584790,1731009057499,-500.0,0.00028014,2]
[341584791,1731009057508,-500.0,0.00028014,2]
[341584792,1731009057517,-500.0,0.00028014,2]
[341584793,1731009057526,-500.0,0.00028014,2]
[341584794,1731009057535,-834.01,0.00028014,2]
[341584795,1731009057544,-711.11,0.00028014,2]
[341584796,1731009057553,-500.0,0.00028014,2]
[341584797,1731009057562,-1043.16,0.00028014,2]
[341584798,1731009057573,-500.0,0.00028014,2]
[341584799,1731009057582,-500.0,0.00028014,2]
[341584800,1731009057591,-500.0,0.00028014,2]
[341584801,1731009057600,-514.95054,0.00028014,7]
[341584802,1731009057610,-500.0,0.00028014,2]
[341584803,1731009057619,-508.91,0.00028014,2]
[341584804,1731009057628,-500.0,0.00028014,2]
[341584805,1731009057637,-514.95054,0.00028014,7]
[341584806,1731009057646,-500.0,0.00028014,2]
[341584807,1731009057655,-841.67,0.00028014,2]
[341584808,1731009057664,-989.91,0.00028014,2]
[341584809,1731009057674,-1564.43,0.00028014,2]
[341584810,1731009057683,-500.0,0.00028014,2]
[341584811,1731009057692,-783.53,0.00028014,2]
[341584812,1731009057701,-151.0,0.00028014,7]
[341584813,1731009057710,-385.584638,0.00028014,7]
[341584814,1731009057719,-500.0,0.00028014,2]
[341584815,1731009057729,-385.584638,0.00028014,7]
[341584816,1731009057738,-500.0,0.00028014,2]
[341584817,1731009057747,-151.0,0.00028014,7]
[341584818,1731009057755,-1176.83,0.00028014,2]
[341584819,1731009057765,-621.21,0.00028014,2]
[341584820,1731009057774,-151.0,0.00028014,7]
[341584821,1731009057783,-500.0,0.00028014,2]
[341584822,1731009057792,-732.71,0.00028014,2]
[341584823,1731009057801,-500.0,0.00028014,2]
[341584824,1731009057810,-677.56,0.00028014,2]
[341584825,1731009057819,-752.64,0.00028014,2]
[341584826,1731009057828,-654.03,0.00028014,2]
[341584827,1731009057837,-10991.15,0.00028014,2]
[341584828,1731009057845,-500.0,0.00028014,2]
[341584829,1731009057855,-500.0,0.00028014,2]
[341584830,1731009057865,-500.0,0.00028014,2]
[341584831,1731009057874,-1035.82,0.00028014,2]
[341584832,1731009057884,-736.83,0.00028014,2]
[341584833,1731009057893,-706.26,0.00028014,2]
[341584834,1731009057902,-500.0,0.00028014,2]
[341584835,1731009057912,-1090.62,0.00028014,2]
[341584836,1731009057921,-1060.24,0.00028014,2]
[341584837,1731009057930,-500.0,0.00028014,2]
[341584838,1731009057939,-1014.37,0.00028014,2]
[341584839,1731009057949,-996.35,0.00028014,2]
[341584840,1731009057958,-1559.71,0.00028014,2]
[341584841,1731009057967,-500.0,0.00028014,2]
[341584842,1731009057977,-4083.53,0.00028014,2]
[341584843,1731009057986,-793.49,0.00028014,2]
[341584844,1731009057995,-500.0,0.00028014,2]
[341584845,1731009058004,-500.0,0.00028014,2]
[341584846,1731009058013,-500.0,0.00028014,2]
[341584847,1731009058022,-620.61,0.00028014,2]
[341584848,1731009058032,-610.69,0.00028014,2]
[341584849,1731009058041,-694.44,0.00028014,2]
[341584850,1731009058050,-2105.09,0.00028014,2]
[341584851,1731009058060,-500.0,0.00028014,2]
[341584852,1731009058070,-508.62,0.00028014,2]
[341584853,1731009058079,-874.34,0.00028014,2]
[341584854,1731009058088,-500.0,0.00028014,2]
[341584855,1731009058097,-500.0,0.00028014,2]
[341584856,1731009058106,-1326.75,0.00028014,2]
[341584857,1731009058117,-1217.77,0.00028014,2]
[341584858,1731009058127,-1928.2,0.00028014,2]
[341584859,1731009058136,-672.83,0.00028014,2]
[341584860,1731009058146,-923.89,0.00028014,2]
[341584861,1731009058155,-843.68,0.00028014,2]
[341584862,1731009058164,-500.0,0.00028014,2]
[341584863,1731009058174,-1611.91,0.00028014,2]
[341584864,1731009058183,-500.0,0.00028014,2]
[341584865,1731009058192,-500.0,0.00028014,2]
[341584866,1731009058202,-560.57,0.00028014,2]
[341584867,1731009058212,-500.0,0.00028014,2]
[341584868,1731009058222,-544.85,0.00028014,2]
[341584869,1731009058232,-593.38,0.00028014,2]
[341584870,1731009058245,-500.0,0.00028014,2]
[341584871,1731009058254,-551.36,0.00028014,2]
[341584872,1731009058263,-2357.37,0.00028014,2]
[341584873,1731009058273,-2026.51,0.00028014,2]
[341584874,1731009058282,-2748.49,0.00028014,2]
[341584875,1731009058292,-624.93,0.00028014,2]
[341584876,1731009058301,-500.0,0.00028014,2]
[341584877,1731009058310,-637.53866099,0.00028014,2]
[341584878,1731009058320,-500.0,0.00028014,2]
[341584879,1731009058330,-500.0,0.00028014,2]
[341584880,1731009058339,-500.0,0.00028014,2]
[341584881,1731009058348,-940.12154733,0.00028014,2]
[341584882,1731009061162,-130.40845267,0.00028014,2]
[341584883,1731009061173,-1890.04,0.00028014,2]
[341584884,1731009061182,-1047.97911224,0.00028014,2]
[341584885,1731009061194,-713.35275501,0.00028014,2]
[341584886,1731009061274,-804.14813275,0.00028014,2]
[341584887,1731009061283,-245.62664274,0.00028014,2]
[341584888,1731009061301,-254.37335726,0.00028014,2]
[341584889,1731009061310,-814.12,0.00028014,2]